bitfinex/quotes_ETHUSD_20251111
["timestamp","ask_amount","ask_price","bid_price","bid_amount"]
[1762904802109,1.23276216,3424.2,3424.1,0.001]
[1762904802310,0.9614,3424.2,3424.1,0.001]
[1762904802511,0.5,3424.2,3424.1,3.00687545]
[1762904802915,0.5,3424.4,3424.3,2.9202424]
[1762904803238,0.5,3424.4,3424.3,3.0056424]
[1762904803413,0.5,3424.6,3424.5,2.92009814]
[1762904803613,0.5,3424.6,3424.3,17.5056424]
[1762904803918,0.5,3424.6,3424.5,0.0854]
[1762904804551,0.5,3424.4,3424.3,14.5]
[1762904804869,4.15307676,3424.4,3424.3,14.5]
[1762904805020,4.64807676,3424.4,3424.3,14.5]
[1762904806322,5.40489732,3424.4,3424.3,14.5]
[1762904806645,5.40489732,3424.4,3424.1,0.001]
[1762904806646,4.90489732,3424.4,3424.1,0.001]
[1762904806817,0.9614,3424.2,3424.1,0.001]
[1762904807019,0.5,3424.2,3424.1,0.001]
[1762904807233,0.5,3424.2,3424.1,0.0864]
[1762904807444,0.5,3424.2,3424.1,3.30766337]
[1762904807613,0.5,3424.4,3424.1,3.39306337]
[1762904807813,0.5,3424.4,3424.1,3.30766337]
[1762904808020,2.92171499,3425.0,3424.3,0.0854]
[1762904808021,0.5,3424.6,3424.3,0.0854]
[1762904808223,0.5,3424.6,3424.1,3.22225804]
[1762904808440,0.5,3424.6,3424.2,0.3222258]
[1762904808652,0.5,3424.6,3424.3,2.9202507]
[1762904809020,0.4614,3424.4,3424.2,0.3222258]
[1762904809215,0.5,3424.2,3424.1,0.001]
[1762904809547,0.5,3424.2,3424.1,2.92147529]
[1762904810041,0.5,3424.2,3424.1,3.00687529]
[1762904811344,0.495,3424.8,3424.4,2.92021934]
[1762904811531,0.5,3424.6,3424.4,2.9202196]
[1762904811740,0.5,3424.6,3424.4,3.51291131]
[1762904811936,0.5,3424.6,3424.5,0.0854]
[1762904812138,0.9564,3424.5,3424.1,0.001]
[1762904812311,0.5,3424.2,3424.1,0.001]
[1762904812516,0.5,3424.6,3424.5,2.92007827]
[1762904812838,0.5,3424.6,3424.5,3.51264847]
[1762904813149,0.5,3424.6,3424.5,0.6779702]
[1762904813346,0.5,3424.6,3424.5,0.0854]
[1762904813549,0.4614,3424.6,3424.2,2.92036697]
[1762904813728,0.5,3424.5,3424.3,2.92030334]
[1762904813947,0.5,3424.3,3424.1,0.001]
[1762904814255,1.4564,3424.2,3424.1,0.001]
[1762904815443,4.37679016,3424.2,3424.1,0.001]
[1762904815638,4.64871341,3424.2,3424.1,0.001]
[1762904816242,1.72832325,3424.2,3424.1,0.001]
[1762904817270,4.64871341,3424.2,3424.1,0.001]
[1762904817570,5.40559427,3424.2,3424.1,0.001]
[1762904820656,6.53933507,3424.2,3424.1,0.001]
[1762904821882,6.53933507,3424.2,3421.7,1.57473194]
[1762904821883,2.92243848,3421.8,3421.7,1.57473194]
[1762904822084,2.92243848,3421.8,3420.2,0.00730936]
[1762904822085,0.5,3420.4,3420.2,0.00730936]
[1762904822454,0.5,3420.4,3420.3,0.4535]
[1762904822643,0.77108208,3420.4,3420.3,0.4535]
[1762904823184,0.5,3420.3,3420.2,0.00730936]
[1762904823373,0.77108208,3420.3,3420.2,0.46080936]
[1762904824363,0.5,3420.3,3420.2,0.46080936]
[1762904825787,0.76968507,3420.3,3420.2,0.00730936]
[1762904827150,0.26968507,3420.3,3420.2,3.85911498]
[1762904827391,0.5,3420.7,3420.3,2.92371304]
[1762904827554,0.5,3420.7,3420.6,2.92346371]
[1762904827755,0.76929275,3420.7,3420.6,3.37696371]
[1762904828363,0.76929275,3420.7,3420.6,0.4535]
[1762904829182,0.26929275,3420.7,3420.6,3.85146371]
[1762904829350,0.5,3421.1,3420.8,2.92323435]
[1762904829555,0.26897639,3421.0,3420.6,0.4535]
[1762904829789,0.26897639,3420.9,3420.2,0.00730936]
[1762904829963,0.5,3420.5,3420.3,2.92370414]
[1762904830294,0.5,3420.5,3420.2,2.93109157]
[1762904830464,0.5,3420.5,3420.4,0.4535]
[1762904830984,0.5,3420.5,3420.4,3.37713466]
[1762904831654,0.5,3420.9,3420.4,1.57161903]
[1762904831854,6.38813162,3421.7,3420.7,2.92330217]
[1762904831855,0.5,3421.1,3420.7,2.92330217]
[1762904832087,0.5,3421.1,3420.8,0.4535]
[1762904832088,0.26874855,3421.0,3420.8,0.4535]
[1762904832389,0.5,3420.8,3420.5,0.4745]
[1762904832591,0.5,3420.8,3420.7,2.92337825]
[1762904832756,0.5,3420.8,3420.7,3.37687825]
[1762904833154,0.5,3421.0,3420.8,2.92328115]
[1762904833359,0.5,3421.0,3420.7,3.85135151]
[1762904833560,0.5,3421.0,3420.9,0.4535]
[1762904833759,0.76867662,3421.0,3420.9,0.4535]
[1762904835469,0.76867662,3421.0,3420.9,14.9535]
[1762904837912,0.76867662,3421.0,3420.9,14.90769]
[1762904838413,0.76867662,3421.0,3420.9,17.83089734]
[1762904838791,0.76867662,3421.0,3420.9,14.90769]
[1762904841111,0.76867662,3421.0,3420.9,14.5]
[1762904842415,0.26867662,3421.0,3420.9,14.9535]
[1762904842806,0.26867662,3421.0,3420.9,17.87670734]
[1762904843007,0.26867662,3421.5,3421.4,2.92278014]
[1762904843192,0.5,3422.2,3421.5,0.5954]
[1762904843392,0.270071,3422.1,3422.0,2.92226767]
[1762904843717,0.5,3422.6,3422.3,2.92193702]
[1762904843892,0.5,3422.6,3422.1,2.92212104]
[1762904843893,0.27025027,3422.5,3422.1,0.1667]
[1762904844221,0.27025027,3422.5,3422.3,2.92200076]
[1762904844397,0.27025027,3422.4,3422.3,2.92200076]
[1762904844598,0.27025027,3422.4,3422.1,0.6412]
[1762904844806,0.27025027,3422.4,3422.3,0.4535]
[1762904845015,0.27025027,3422.4,3422.1,0.1667]
[1762904845223,0.5,3422.2,3422.0,14.5]
[1762904845430,0.5,3422.2,3422.1,2.92212656]
[1762904845629,0.5,3422.2,3422.1,3.37562656]
[1762904845930,0.5,3422.2,3422.1,3.37568228]
[1762904846105,0.002,3422.3,3422.2,2.92209689]
[1762904846310,0.7567354,3422.3,3422.0,14.5]
[1762904846496,0.5,3422.1,3422.0,14.5]
[1762904846696,0.7708354,3422.1,3422.0,14.5]
[1762904847008,0.7708354,3422.1,3421.5,0.5862]
[1762904847009,0.5,3421.7,3421.1,3.60402763]
[1762904847204,0.5,3421.7,3421.2,2.92294726]
[1762904847406,0.27102658,3421.6,3421.3,14.5]
[1762904847611,0.5,3421.4,3421.3,14.5]
[1762904847829,3.67771074,3421.4,3420.9,0.1667]
[1762904848036,3.67771074,3421.4,3420.6,3.38870229]
[1762904848037,0.5,3421.1,3420.6,3.38870229]
[1762904848223,0.27102658,3421.0,3420.8,2.92329066]
[1762904848425,0.27102658,3420.9,3420.8,2.92329066]
[1762904848775,0.27102658,3420.9,3420.6,2.92345646]
[1762904848920,0.27116142,3420.8,3420.5,0.682]
[1762904849099,0.5,3420.8,3420.6,2.92346166]
[1762904849298,0.4839,3420.6,3420.1,0.129]
[1762904849504,0.27153248,3420.5,3420.2,14.5]
[1762904849729,0.27153248,3420.4,3420.2,14.5]
[1762904850033,1.01463248,3420.3,3420.2,14.5]
[1762904850232,1.45762128,3420.3,3420.2,14.5]
[1762904850436,1.45762128,3420.3,3420.1,0.001]
[1762904850437,0.5,3420.2,3420.1,0.001]
[1762904850626,4.6684381,3420.2,3420.1,0.001]
[1762904850821,1.74463248,3420.2,3420.1,0.001]
[1762904851201,4.6684381,3420.2,3420.1,0.001]
[1762904851943,1.74463248,3420.2,3420.1,0.001]
[1762904852430,4.6684381,3420.2,3420.1,0.001]
[1762904852655,5.42765284,3420.2,3420.1,0.001]
[1762904852861,1.25303248,3420.2,3420.1,0.001]
[1762904853056,1.25328003,3420.2,3420.1,0.001]
[1762904853536,0.77178003,3420.2,3420.1,0.001]
[1762904855018,0.77178003,3420.2,3420.1,2.92489111]
[1762904855221,0.77178003,3420.2,3420.1,3.51239111]
[1762904855222,0.27178003,3420.2,3420.1,3.51239111]
[1762904856358,0.27178003,3420.2,3420.1,6.11806485]
[1762904857927,0.27178003,3420.2,3420.1,6.08095875]
[1762904858126,0.27178003,3420.2,3420.1,3.94058501]
[1762904858341,0.27178003,3420.2,3420.1,18.44058501]
[1762904859354,0.27178003,3420.2,3420.1,17.84728501]
[1762904859535,0.27178003,3420.2,3420.1,17.97528501]
[1762904859731,0.27178003,3420.2,3420.1,15.0875]
[1762904859932,1.25568003,3420.2,3420.1,14.5]
[1762904860549,4.67108565,3420.2,3420.1,14.5]
[1762904860778,3.4239766,3420.0,3419.9,0.001]
[1762904861074,0.77178003,3420.0,3419.9,0.001]
[1762904861375,0.77178003,3420.0,3419.9,0.4605]
[1762904861545,0.27178003,3420.0,3419.9,0.4605]
[1762904861745,0.27178003,3420.0,3419.9,3.3845621]
[1762904862158,0.27178003,3420.0,3419.9,0.4605]
[1762904862476,0.27178003,3420.0,3419.9,3.3845621]
[1762904862775,0.27178003,3420.0,3419.9,0.4605]
[1762904863082,0.27178003,3420.0,3419.9,0.001]
[1762904865745,4.67125663,3420.0,3419.9,0.001]
[1762904865943,1.74728003,3420.0,3419.9,0.001]
[1762904867583,5.43094721,3420.0,3419.9,0.001]
[1762904867752,2.9240621,3419.9,3419.7,0.00831058]
[1762904868081,1.25568003,3419.8,3419.7,0.00831058]
[1762904868281,1.74728003,3419.8,3419.7,0.001]
[1762904868488,2.60205287,3419.8,3419.7,0.001]
[1762904868684,5.52620048,3419.8,3419.7,0.001]
[1762904869688,11.9143321,3419.8,3419.7,0.001]
[1762904869859,13.0480729,3419.8,3419.7,0.001]
[1762904870062,13.4535769,3419.8,3419.7,0.001]
[1762904870290,13.4535769,3419.8,3416.5,0.15273352]
[1762904870291,0.5,3418.3,3418.2,14.5]
[1762904870495,0.77178003,3418.3,3418.2,14.5]
[1762904870664,0.77178003,3418.3,3418.2,19.80031635]
[1762904870665,0.27178003,3418.3,3418.2,19.80031635]
[1762904870991,0.5,3418.9,3418.2,16.8748]
[1762904871200,0.27124609,3418.8,3418.3,0.4653]
[1762904871489,0.5,3418.9,3418.3,2.16945]
[1762904871691,0.27115447,3418.8,3418.2,14.5]
[1762904871890,0.5,3418.5,3418.4,2.92534519]
[1762904872095,0.4839,3418.5,3418.2,14.5]
[1762904872394,0.5,3418.4,3418.3,2.92543076]
[1762904872601,0.5,3418.3,3418.2,14.5]
[1762904872759,0.7572,3418.3,3418.2,14.5]
[1762904872955,1.2488,3418.3,3418.2,14.5]
[1762904873155,4.44530848,3418.3,3418.2,14.5]
[1762904873355,5.1823723,3418.3,3418.2,14.5]
[1762904873594,5.1823723,3418.3,3417.2,0.684]
[1762904873595,0.5,3417.3,3416.9,0.128]
[1762904873826,0.5,3417.3,3416.9,3.05461662]
[1762904873953,0.5,3417.3,3417.0,14.5]
[1762904874160,0.5,3417.3,3417.0,17.42648291]
[1762904874358,0.5,3417.3,3417.1,2.92644537]
[1762904874594,0.4916,3417.3,3416.8,2.9267141]
[1762904874900,0.1928,3417.6,3417.2,2.92633545]
[1762904875193,0.1928,3417.6,3416.9,14.5]
[1762904875194,0.5,3417.2,3416.9,14.5]
[1762904875401,0.4839,3417.3,3417.0,2.92649132]
[1762904875402,0.5,3417.1,3417.0,2.92649132]
[1762904875603,0.7572,3417.0,3416.9,14.5]
[1762904875756,1.02811104,3417.0,3416.9,14.5]
[1762904876101,1.01181104,3417.0,3416.7,0.003]
[1762904876263,1.1618,3416.8,3416.7,0.003]
[1762904876596,1.23599571,3416.8,3416.7,2.92980071]
[1762904876808,0.77079571,3416.8,3416.7,0.003]
[1762904876959,1.23599571,3416.8,3416.7,0.003]
[1762904877157,0.5,3416.8,3416.7,2.92980071]
[1762904877361,1.1337408,3417.3,3416.7,0.4952]
[1762904877362,0.5,3417.0,3416.7,0.4952]
[1762904877561,0.5,3417.0,3416.7,3.42199216]
[1762904877795,0.5,3417.0,3416.9,2.9266294]
[1762904878001,0.5,3417.0,3416.8,2.92664739]
[1762904878160,0.5,3417.0,3416.9,2.9266294]
[1762904878466,0.5,3417.0,3416.3,0.4541]
[1762904878670,0.5,3417.0,3416.4,1.78813759]
[1762904878891,0.5,3417.0,3416.8,2.9266492]
[1762904879094,0.5,3416.8,3416.7,2.92677342]
[1762904879394,1.1337408,3417.3,3416.7,2.92677342]
[1762904879597,0.5,3417.1,3417.0,2.92654375]
[1762904879778,0.5,3417.1,3416.9,2.9266294]
[1762904879981,0.5,3417.1,3416.5,3.39166675]
[1762904880200,0.5,3417.1,3416.6,0.51798043]
[1762904880386,0.5,3416.8,3416.7,2.9267952]
[1762904880586,0.5,3416.8,3416.4,4.71517601]
[1762904880777,0.5,3416.5,3416.4,1.78813759]
[1762904881106,0.5,3416.5,3416.4,4.71519531]
[1762904881310,0.5,3416.5,3416.4,1.78813759]
[1762904881479,0.979,3416.5,3416.2,2.92722908]
[1762904881682,0.979,3416.5,3416.1,14.5]
[1762904882010,0.979,3416.5,3416.2,2.92722226]
[1762904882230,0.979,3416.5,3416.1,14.5]
[1762904882232,0.278,3416.3,3416.1,14.5]
[1762904882379,0.9769,3416.2,3416.1,14.5]
[1762904882800,0.9769,3416.2,3415.9,0.003]
[1762904882801,7.77313401,3416.2,3415.9,0.003]
[1762904883042,0.2428,3417.6,3415.9,0.003]
[1762904883043,1.6055408,3416.5,3415.9,0.003]
[1762904883211,0.5,3416.0,3415.9,2.93048616]
[1762904883534,0.5,3416.0,3415.9,14.503]
[1762904883844,0.979,3416.0,3415.9,14.503]
[1762904884198,8.05275741,3416.0,3415.3,0.07446393]
[1762904884398,0.4718,3415.9,3415.3,0.07446393]
[1762904884609,0.5,3415.6,3415.3,3.00246439]
[1762904884837,6.52033401,3416.2,3415.4,14.5]
[1762904885144,6.52033401,3416.2,3415.5,2.92782901]
[1762904885145,0.5,3415.6,3415.5,2.92782901]
[1762904885431,0.5,3415.6,3415.4,18.90006024]
[1762904885636,0.5,3415.6,3415.4,15.97215639]
[1762904885795,0.5,3415.6,3415.4,18.90006261]
[1762904885998,0.5,3415.6,3415.5,2.92782901]
[1762904886225,0.5,3415.6,3415.4,18.90004279]
[1762904886433,0.5,3415.6,3415.4,15.97215639]
[1762904886832,0.1959,3416.2,3415.5,2.06506203]
[1762904887053,0.4718,3416.6,3416.1,2.92724352]
[1762904887346,0.5,3416.2,3416.1,2.92724352]
[1762904887502,0.5,3416.2,3416.0,2.92739512]
[1762904887704,0.5,3416.2,3416.1,2.92731477]
[1762904887905,0.5,3416.2,3416.0,2.9273901]
[1762904888239,0.5,3416.2,3415.8,2.92754638]
[1762904888542,0.5,3416.2,3415.6,3.39242553]
[1762904888737,0.5,3416.2,3415.8,2.92754003]
[1762904888896,0.5,3416.2,3415.6,5.41848068]
[1762904889102,0.5,3416.2,3415.7,2.92765758]
[1762904889339,0.5,3416.2,3415.6,2.49075515]
[1762904889637,0.5,3416.2,3416.0,2.9273468]
[1762904889936,0.5,3416.2,3416.1,2.92731477]
[1762904890170,0.45913098,3416.9,3416.1,1.17028595]
[1762904890399,0.1959,3417.0,3416.1,1.17028595]
[1762904890400,0.5,3417.0,3416.9,2.9266294]
[1762904890532,0.5,3417.2,3417.1,2.9264581]
[1762904890732,0.5,3417.4,3417.3,2.92624885]
[1762904891380,0.5,3417.4,3417.2,0.128]
[1762904891670,0.5,3417.4,3417.1,14.5]
[1762904891871,0.5,3417.4,3417.2,2.92630665]
[1762904892042,0.5,3417.4,3417.3,2.92628683]
[1762904892446,0.5,3417.4,3417.2,2.92633806]
[1762904892851,0.5,3417.4,3417.1,14.5]
[1762904893278,0.5,3417.4,3417.3,0.4604]
[1762904893582,0.5,3417.4,3417.3,2.92628683]
[1762904893766,0.5,3417.4,3417.2,2.92633978]
[1762904893936,0.5,3417.4,3417.1,17.55445576]
[1762904894132,0.5,3417.4,3417.3,2.92628683]
[1762904894344,0.77020405,3417.4,3417.3,2.92628683]
[1762904894747,0.77020405,3417.4,3417.3,3.38668683]
[1762904894944,0.1966,3418.2,3417.5,2.92611558]
[1762904895151,0.5,3417.8,3417.5,2.92611558]
[1762904895350,0.27018066,3417.7,3417.6,2.92602996]
[1762904895935,0.27018066,3417.7,3417.6,3.38642996]
[1762904896163,0.5,3417.8,3417.7,2.92594434]
[1762904896362,0.77053429,3417.8,3417.7,2.92594434]
[1762904896860,0.27053429,3417.8,3417.7,3.85104434]
[1762904897059,0.5,3418.2,3418.1,2.92554815]
[1762904897259,0.77052211,3418.2,3418.0,2.9256103]
[1762904897461,0.27052211,3418.1,3418.0,2.92568753]
[1762904897640,0.27052211,3418.1,3418.0,17.88608753]
[1762904898283,0.5,3418.5,3418.4,2.92534214]
[1762904898448,0.77100353,3418.5,3418.4,2.92534214]
[1762904898777,0.27100353,3418.5,3418.4,3.38574214]
[1762904900695,0.27100353,3418.5,3418.4,4.97058001]
[1762904900981,0.002,3419.2,3419.1,2.92474627]
[1762904901274,0.27324183,3419.2,3419.1,17.88514627]
[1762904902391,1.1337408,3419.1,3417.0,0.1471]
[1762904902694,2.92528624,3418.5,3417.7,2.92594358]
[1762904902841,0.27124183,3418.4,3417.3,0.405504]
[1762904903046,0.5,3418.2,3417.5,2.92611558]
[1762904903285,0.5,3418.2,3418.0,2.92560521]
[1762904903286,0.27124183,3418.1,3418.0,2.92560521]
[1762904903787,0.5,3418.2,3418.1,2.92560194]
[1762904904084,0.77090147,3418.2,3418.1,2.92560194]
[1762904904446,0.27090147,3418.2,3418.1,3.38600194]
[1762904904682,0.5,3418.6,3418.2,2.9254793]
[1762904904855,0.5,3418.6,3418.3,2.92541506]
[1762904904856,0.27086925,3418.5,3418.3,2.92541506]
[1762904905189,0.27086925,3418.5,3417.9,0.689]
[1762904905190,0.5,3418.0,3417.3,0.4647]
[1762904905374,0.5,3418.0,3417.9,2.92577313]
[1762904905545,0.5,3418.0,3417.7,2.92590481]
[1762904905748,0.5,3418.0,3417.8,2.92581474]
[1762904906243,0.5,3418.0,3417.4,2.92613174]
[1762904906244,0.6591,3417.9,3417.4,2.92613174]
[1762904906440,0.5,3417.7,3417.3,0.689]
[1762904906661,0.5,3417.7,3417.4,2.92619343]
[1762904906862,0.5,3417.7,3417.3,0.689]
[1762904907067,0.5,3417.7,3417.6,2.92602996]
[1762904907757,0.4688,3418.4,3417.7,2.92587762]
[1762904908091,0.5,3417.9,3417.4,2.92619857]
[1762904908287,0.5,3417.9,3417.7,2.92594192]
[1762904908486,0.5,3417.9,3417.5,2.92605447]
[1762904908690,0.5,3417.6,3417.3,2.92627771]
[1762904908859,0.5,3417.6,3417.4,2.92617555]
[1762904909070,0.4688,3417.8,3416.8,2.92671505]
[1762904909071,0.5,3416.9,3416.8,2.92671505]
[1762904909263,0.5,3417.3,3416.5,0.689]
[1762904909579,0.5,3417.5,3417.3,2.92624471]
[1762904909882,0.5,3417.5,3417.4,2.9262012]
[1762904910491,0.5,3417.5,3417.2,2.92631306]
[1762904910653,0.5,3417.5,3417.3,2.92627788]
[1762904910985,0.5,3417.5,3417.4,2.9262012]
[1762904911200,0.5,3417.5,3417.3,2.92625321]
[1762904911509,0.5,3417.2,3417.0,2.92651439]
[1762904911648,0.5,3417.2,3416.8,2.92664085]
[1762904911853,0.9688,3417.2,3416.7,0.689]
[1762904912488,0.616,3416.8,3416.3,2.92710723]
[1762904912653,0.5,3416.5,3416.4,2.92705772]
[1762904912853,0.5,3416.5,3416.3,2.92713518]
[1762904913294,0.5,3416.4,3416.2,0.02927229]
[1762904913496,0.5,3416.5,3416.1,0.1244]
[1762904913679,0.5,3416.5,3416.1,2.92727777]
[1762904913879,0.9688,3416.5,3416.1,2.92727777]
[1762904914304,0.1425,3416.8,3415.8,0.128]
[1762904914305,0.5,3416.1,3415.8,0.128]
[1762904914508,0.5,3416.1,3416.0,2.92740046]
[1762904914805,0.5,3416.1,3415.6,0.128]
[1762904915004,0.1425,3416.8,3416.4,2.92704666]
[1762904915189,0.5,3416.5,3416.4,2.92704666]
[1762904915864,0.4688,3417.0,3416.4,3.39844666]
[1762904916063,0.77094645,3416.9,3416.8,2.92671505]
[1762904916283,0.5,3417.0,3416.9,2.9266294]
[1762904916479,0.77109582,3417.0,3416.9,2.9266294]
[1762904916688,0.77109582,3417.0,3416.3,4.559]
[1762904916883,0.5,3417.0,3416.4,2.92705772]
[1762904917091,0.5,3417.0,3416.8,2.92669997]
[1762904917411,0.27118846,3416.9,3416.8,2.92669997]
[1762904917811,0.27118846,3416.9,3416.3,5.40859634]
[1762904917975,0.5,3417.0,3416.9,2.9266294]
[1762904918174,0.77122491,3417.0,3416.9,2.9266294]
[1762904918401,0.77122491,3417.0,3416.8,2.92668735]
[1762904918608,0.27122491,3416.9,3416.8,2.92668735]
[1762904918788,0.27122491,3416.9,3416.7,2.92676727]
[1762904918992,0.27122491,3416.9,3416.5,0.689]
[1762904919201,0.5,3416.8,3416.7,2.92679065]
[1762904919698,0.5,3417.0,3416.5,0.689]
[1762904920007,0.27161311,3416.9,3416.8,2.92663003]
[1762904920571,0.4688,3417.8,3417.1,2.9263962]
[1762904920772,0.5,3417.3,3417.2,2.92637246]
[1762904920972,0.7717653,3417.3,3417.2,2.92637246]
[1762904921168,0.2717653,3417.3,3417.2,3.42703618]
[1762904921381,0.1856,3417.9,3417.2,3.42703618]
[1762904921382,0.5,3417.9,3417.2,2.35906003]
[1762904921595,0.27186894,3417.8,3417.7,2.92589439]
[1762904922109,0.5,3418.1,3417.6,2.92594662]
[1762904922267,0.5,3417.8,3417.7,2.92593784]
[1762904922874,1.21414142,3417.8,3416.9,1.1337408]
[1762904923073,1.21414142,3417.8,3416.6,3.40653329]
[1762904923074,0.5,3417.5,3417.2,2.92632477]
[1762904923275,0.5,3417.5,3417.3,2.92625895]
[1762904923578,0.5,3417.5,3417.2,3.61536807]
[1762904923806,0.5,3417.5,3417.4,2.9262012]
[1762904924156,1.1337408,3418.6,3418.5,2.92525961]
[1762904924157,0.5,3418.6,3418.5,2.92525961]
[1762904924456,0.002,3419.2,3417.9,2.92572706]
[1762904924457,0.5,3418.7,3418.6,2.92511983]
[1762904924624,0.5,3418.8,3418.7,2.92508848]
[1762904925328,0.5,3418.8,3418.0,1.1697]
[1762904925529,0.5,3418.8,3418.6,2.92517088]
[1762904925734,0.5,3418.8,3418.6,2.9251585]
[1762904926966,0.4708,3419.2,3418.7,1.1604]
[1762904926967,0.002,3419.2,3418.7,1.1604]
[1762904927270,0.002,3419.2,3419.1,2.92474627]
[1762904927851,0.002,3419.2,3418.7,0.689]
[1762904928059,0.002,3419.2,3419.1,2.92474627]
[1762904928687,0.002,3419.2,3418.7,0.689]
[1762904929006,0.002,3419.2,3419.1,2.92474627]
[1762904929504,0.002,3419.2,3419.1,3.53364627]
[1762904929860,0.002,3419.2,3419.1,4.80531231]
[1762904930166,0.002,3419.2,3419.1,5.18156885]
[1762904931162,0.002,3419.2,3419.1,6.31530965]
[1762904931465,0.002,3419.6,3419.5,3.32990815]
[1762904931683,0.002,3419.6,3419.5,12.68731393]
[1762904931878,0.002,3419.6,3419.5,13.16701393]
[1762904935422,0.002,3419.6,3419.5,13.16601393]
[1762904935701,0.002,3420.2,3419.8,0.4556]
[1762904935864,0.002,3420.2,3420.1,5.04313591]
[1762904936264,0.002,3420.2,3420.1,5.53733591]
[1762904937895,0.002,3420.2,3420.1,5.32563191]
[1762904938262,0.002,3420.2,3420.1,5.73113591]
[1762904939065,0.4905,3420.2,3420.1,3.61189111]
[1762904939466,0.002,3420.2,3420.1,3.61189111]
[1762904939804,0.002,3420.2,3420.1,4.8855887]
[1762904940488,0.002,3420.2,3419.6,0.863004]
[1762904940489,0.4905,3420.2,3419.0,0.4575]
[1762904940689,0.6779,3419.6,3419.1,0.001]
[1762904940891,0.5,3419.5,3419.4,2.9244361]
[1762904941208,0.5,3419.5,3419.1,0.689]
[1762904941209,0.4885,3419.2,3419.1,0.001]
[1762904941503,0.9885,3419.2,3419.1,0.001]
[1762904941676,4.38126073,3419.2,3419.1,0.001]
[1762904942003,2.1871824,3419.2,3419.1,0.001]
[1762904942204,0.65016839,3419.6,3419.1,0.001]
[1762904942392,0.5,3419.5,3419.1,0.001]
[1762904942593,0.1914,3423.0,3420.9,2.92320734]
[1762904942798,0.1914,3422.5,3421.3,1.1337408]
[1762904942998,0.1914,3422.5,3421.7,0.405504]
[1762904943174,0.1914,3422.5,3422.2,2.92209689]
[1762904943369,0.1914,3422.7,3422.2,3.35682185]
[1762904943569,0.1914,3422.7,3422.2,3.32760089]
[1762904945208,0.1914,3423.0,3422.2,4.8899308]
[1762904945412,0.1914,3423.3,3422.2,4.8899308]
[1762904945614,0.1914,3423.3,3422.2,6.0236716]
[1762904946581,0.1914,3423.3,3422.2,5.1045716]
[1762904946582,0.1914,3422.9,3422.2,5.1045716]
[1762904947115,2.92032853,3424.3,3422.2,6.0236716]
[1762904947417,0.4681,3423.8,3422.2,6.0236716]
[1762904948706,2.92075734,3423.8,3422.2,6.0236716]
[1762904949016,0.4681,3423.5,3422.2,6.0236716]
[1762904949430,0.01177634,3423.4,3422.2,6.0236716]
[1762904950124,0.1914,3422.9,3422.2,5.1045716]
[1762904950277,0.1914,3422.9,3422.2,5.8095716]
[1762904950512,0.4681,3422.8,3422.2,5.8095716]
[1762904951450,0.1914,3422.9,3422.2,5.8095716]
[1762904951651,0.1914,3422.9,3422.2,6.2711716]
[1762904953166,0.1914,3424.0,3422.5,0.867104]
[1762904953167,0.6595,3424.0,3422.5,0.867104]
[1762904953325,0.6595,3424.0,3422.9,0.405504]
[1762904953525,0.4681,3423.9,3423.5,2.92097921]
[1762904953969,0.4885,3423.6,3423.5,2.92097921]
[1762904954583,0.4885,3423.6,3423.4,2.92104387]
[1762904955061,0.4885,3423.6,3423.5,2.92098729]
[1762904955482,0.4885,3423.6,3423.4,2.92104865]
[1762904955677,0.4681,3423.5,3422.9,1.108504]
[1762904955837,0.1812,3423.0,3422.4,0.702]
[1762904956036,0.4854,3422.9,3422.8,2.92158466]
[1762904956571,0.4854,3422.9,3422.7,2.9216672]
[1762904956725,0.4854,3422.9,3422.8,2.92158466]
[1762904956921,0.6696,3422.9,3422.4,1.1905]
[1762904957121,1.1377,3422.9,3422.6,2.92174359]
[1762904957356,0.4681,3422.8,3422.6,2.92175324]
[1762904957553,0.1914,3422.7,3422.6,2.92175324]
[1762904958548,0.6595,3422.7,3422.6,2.92175324]
[1762904958923,0.1914,3422.7,3422.6,2.92175324]
[1762904961072,0.6523,3422.9,3422.8,2.92158466]
[1762904961567,1.1408,3422.9,3422.7,2.92165133]
[1762904961724,1.1408,3422.9,3422.5,0.405504]
[1762904961918,1.1408,3422.9,3422.7,2.92166692]
[1762904962125,1.1408,3422.9,3422.5,0.405504]
[1762904962319,1.1408,3422.9,3422.4,0.702]
[1762904962559,0.1883,3422.5,3422.4,4.02938773]
[1762904962851,0.4681,3422.8,3422.7,2.92167002]
[1762904963359,0.9566,3422.8,3422.7,2.92167002]
[1762904963835,0.9566,3422.8,3422.6,2.92172586]
[1762904964034,0.9566,3422.8,3422.7,2.92167002]
[1762904964557,0.4885,3422.8,3422.7,2.92167002]
[1762904965224,0.4885,3422.8,3422.6,2.92173259]
[1762904965422,0.9566,3422.8,3422.7,2.92167002]
[1762904965651,0.4885,3422.8,3422.4,1.107504]
[1762904965852,0.9832,3422.8,3422.7,2.92167002]
[1762904966049,0.4885,3422.8,3422.7,2.92167002]
[1762904966783,0.1842,3422.9,3422.8,2.92158466]
[1762904966966,0.1842,3422.9,3422.5,2.92177483]
[1762904967167,0.1842,3422.9,3422.8,2.92158466]
[1762904967370,0.1842,3422.9,3422.4,1.107504]
[1762904967582,0.1842,3422.9,3422.7,2.92161054]
[1762904967775,0.1842,3422.9,3422.8,2.92158466]
[1762904968259,0.1842,3422.9,3422.6,2.92175039]
[1762904968462,0.1842,3422.9,3422.4,1.107504]
[1762904968655,0.4947,3422.8,3422.4,1.107504]
[1762904968870,0.4947,3422.8,3422.7,2.92167002]
[1762904969272,0.4947,3422.8,3422.5,2.92184075]
[1762904969273,0.4576,3422.8,3422.4,1.107504]